bitfinex-derivatives/quotes_BNBF0:USTF0_20241231
["timestamp","ask_amount","ask_price","bid_price","bid_amount"]
[1735626856758,0.28507084,701.58,700.01,1.35151133]
[1735626857158,0.28507084,701.58,700.02,0.28570612]
[1735626858659,0.28507084,701.58,700.03,1.06580113]
[1735626859560,0.28507084,701.58,700.02,1.35150725]
[1735626860561,0.28507084,701.58,700.08,1.06580113]
[1735626861560,0.28507084,701.58,700.1,1.06580113]
[1735626862160,0.28507084,701.58,700.11,1.06580113]
[1735626863261,0.28507084,701.58,700.03,0.28570204]
[1735626873667,0.28507084,701.58,700.1,1.06580113]
[1735626874163,0.28507084,701.58,700.11,0.28566939]
[1735626874758,0.28507084,701.58,700.11,1.35147052]
[1735626875556,0.28507084,701.58,700.11,0.28566939]
[1735626877564,0.28507084,701.58,700.16,1.06580113]
[1735626877765,1.34925417,701.58,700.16,1.06580113]
[1735626878762,0.26239826,701.57,700.16,1.06580113]
[1735626879261,0.26239826,701.57,700.15,1.06580113]
[1735626879963,0.2624172,701.56,700.15,1.06580113]
[1735626880165,1.34925417,701.58,700.11,0.28566939]
[1735626880166,1.06418333,701.41,700.11,0.28566939]
[1735626880764,1.49000243,701.4,700.11,0.28566939]
[1735626881266,1.49000243,701.4,700.15,1.06580113]
[1735626883266,1.49000243,701.4,700.11,0.28566939]
[1735626884261,1.49000243,701.4,700.18,1.06580113]
[1735626885768,1.49000243,701.4,700.11,0.28566939]
[1735626885769,1.49000243,701.4,700.17,1.06580113]
[1735626886668,1.49000243,701.4,700.2,1.06580113]
[1735626889062,1.49000243,701.4,700.14,1.06580113]
[1735626890065,1.49000243,701.4,700.11,0.28566939]
[1735626891170,0.2624638,701.39,700.11,0.28566939]
[1735626891778,1.49000243,701.4,700.11,0.28566939]
[1735626896873,0.28514806,701.39,700.11,0.28566939]
[1735626898080,0.28514806,701.39,699.58,1.06580113]
[1735626898274,0.28514806,701.39,699.59,0.28588173]
[1735626898479,0.26250686,701.38,699.59,0.28588173]
[1735626898982,0.28516026,701.36,699.59,0.28588173]
[1735626899178,0.26251369,701.35,699.59,0.28588173]
[1735626899475,0.28517245,701.33,699.59,0.28588173]
[1735626899676,0.26251369,701.32,699.59,0.28588173]
[1735626900077,1.4907258,701.31,699.59,0.28588173]
[1735626900279,0.26251369,701.3,699.59,0.28588173]
[1735626900677,0.28519279,701.28,699.59,0.28588173]
[1735626901873,0.28519279,701.28,699.62,1.06580113]
[1735626902279,0.26251715,701.27,699.62,1.06580113]
[1735626902982,0.28519279,701.28,699.62,1.06580113]
[1735626903185,0.28519279,701.28,699.59,1.52517533]
[1735626903486,0.26251699,701.27,699.6,2.43238499]
[1735626903784,0.26251699,701.27,699.6,1.23877911]
[1735626903984,0.26251699,701.27,699.59,0.28588173]
[1735626904984,0.26251699,701.27,699.59,1.52466084]
[1735626905384,0.26251699,701.27,699.62,1.06580113]
[1735626906084,0.26251699,701.27,699.63,0.28586538]
[1735626906687,0.26251699,701.27,699.63,1.35166651]
[1735626907582,0.28520092,701.26,699.63,0.28586538]
[1735626907784,0.26251699,701.25,699.63,0.28586538]
[1735626907984,0.28520905,701.24,699.63,0.28586538]
[1735626908188,0.26252232,701.23,699.63,0.28586538]
[1735626908588,0.28520905,701.24,699.63,0.28586538]
[1735626908589,0.28521719,701.22,699.63,0.28586538]
[1735626910095,0.28521719,701.22,699.67,1.06580113]
[1735626910390,1.49060874,701.21,699.68,0.28584495]
[1735626910585,0.28522532,701.2,699.68,0.28584495]
[1735626910791,0.28522532,701.2,699.69,1.06580113]
[1735626911191,0.28522532,701.2,699.7,0.28583678]
[1735626911992,0.28522532,701.2,699.72,1.06580113]
[1735626912688,0.28522532,701.2,699.7,0.28583678]
[1735626912689,0.28522532,701.2,699.73,1.06580113]
[1735626913785,0.28522532,701.2,699.79,1.06580113]
[1735626916390,0.28522532,701.2,699.81,1.06580113]
[1735626917393,0.28522532,701.2,699.78,1.06580113]
[1735626918388,0.28522532,701.2,699.73,1.06580113]
[1735626918893,0.26254514,701.19,699.73,1.06580113]
[1735626919096,0.26254514,701.19,699.71,1.06580113]
[1735626919689,0.28522532,701.2,699.71,1.06580113]
[1735626920593,0.28522532,701.2,699.7,0.28583678]
[1735626922897,0.28522532,701.2,699.74,1.06580113]
[1735626923088,0.26255143,701.19,699.74,1.06580113]
[1735626923797,1.06418333,701.13,699.7,1.35163791]
[1735626924498,1.49076837,701.12,699.7,1.35163791]
[1735626924698,2.5549517,701.12,699.7,1.35163791]
[1735626925500,0.26258127,701.11,699.7,1.35163791]
[1735626925702,1.06418333,701.06,699.7,0.28583678]
[1735626929103,1.06418333,701.11,699.7,0.28583678]
[1735626930402,1.49076837,701.12,699.7,0.28583678]
[1735626930403,0.26258642,701.1,699.7,0.28583678]
[1735626930599,0.26258642,701.09,699.7,0.28583678]
[1735626930805,0.26258642,701.08,699.7,0.28583678]
[1735626930998,0.26258642,701.07,699.7,0.28583678]
[1735626931196,2.5549517,701.12,699.7,0.28583678]
[1735626931397,0.26259726,701.11,699.7,0.28583678]
[1735626931905,1.06418333,701.07,699.7,0.28583678]
[1735626932203,0.26261835,701.06,699.7,0.28583678]
[1735626932799,1.06418333,701.07,699.7,0.28583678]
[1735626933205,1.49076837,701.12,699.7,0.28583678]
[1735626933206,1.06418333,701.05,699.7,0.28583678]
[1735626934704,1.4909174,701.04,699.7,0.28583678]
[1735626935803,1.4909174,701.04,699.74,1.06580113]
[1735626936810,1.4909174,701.04,699.76,1.06580113]
[1735626937905,1.4909174,701.04,699.7,0.28583678]
[1735626937906,1.4909174,701.04,699.78,1.06580113]
[1735626939106,1.4909174,701.04,699.79,1.06580113]
[1735626940409,1.4909174,701.04,699.78,1.06580113]
[1735626941313,1.4909174,701.04,699.7,0.28583678]
[1735626944307,0.28529449,701.03,699.7,0.28583678]
[1735626954721,0.28529449,701.03,699.7,1.35163791]
[1735626956015,0.28529449,701.03,699.73,1.06580113]
[1735626956919,0.28529449,701.03,699.74,0.28582044]
[1735626957120,0.28529449,701.03,699.85,1.06580113]
[1735626958120,0.28529449,701.03,699.84,1.06580113]
[1735626959217,0.28529449,701.03,699.8,1.06580113]
[1735626961016,0.28529449,701.03,699.84,1.06580113]
[1735626961823,0.28529449,701.03,699.74,0.28582044]
[1735626961824,0.28529449,701.03,699.74,1.35162157]
[1735626962921,0.28529449,701.03,699.74,0.28582044]
[1735626964720,0.28529449,701.03,699.74,1.35162157]
[1735626965816,0.28529449,701.03,699.75,1.06580113]
[1735626966916,0.28529449,701.03,699.83,1.06580113]
[1735626967917,0.28529449,701.03,699.81,1.06580113]
[1735626969026,0.28529449,701.03,699.79,1.06580113]
[1735626970018,0.28529449,701.03,699.74,0.28582044]
[1735626975623,0.26263051,701.02,699.74,0.28582044]
[1735626976026,0.26263051,701.02,699.54,1.06580113]
[1735626976223,0.26266456,701.01,699.54,1.06580113]
[1735626976422,0.28529449,701.03,699.39,1.06580113]
[1735626976423,1.06418333,700.92,699.39,1.06580113]
[1735626976631,0.26266456,700.91,699.39,1.06580113]
[1735626977131,1.491354,700.9,699.39,1.06580113]
[1735626977329,2.55553733,700.9,699.35,1.06580113]
[1735626977532,0.26269366,700.89,699.35,1.06580113]
[1735626978730,0.26269366,700.89,699.09,2.17601064]
[1735626978731,0.26269366,700.89,699.09,1.06580113]
[1735626979129,1.491354,700.9,699.09,1.06580113]
[1735626979432,0.2626977,700.89,699.09,1.06580113]
[1735626979632,1.491354,700.9,699.1,0.2860821]
[1735626979828,0.26269026,700.89,699.1,0.2860821]
[1735626980229,1.491354,700.9,699.1,0.2860821]
[1735626980434,0.26269536,700.89,699.1,0.2860821]
[1735626980728,0.26269995,700.88,699.1,0.2860821]
[1735626980930,1.491354,700.9,699.1,0.2860821]
[1735626981128,0.26269793,700.89,699.1,0.2860821]
[1735626982529,1.491354,700.9,699.1,0.2860821]
[1735626985431,0.26271832,700.89,699.1,0.2860821]
[1735626985834,0.26271083,700.88,699.1,0.2860821]
[1735626986032,0.26271083,700.89,699.1,0.2860821]
[1735626986235,0.26271083,700.88,699.1,0.2860821]
[1735626986438,0.26271083,700.87,699.1,0.2860821]
[1735626986640,0.26271083,700.86,699.1,0.2860821]
[1735626986834,0.26271083,700.85,699.1,0.2860821]
[1735626987133,0.26271083,700.84,699.1,0.2860821]
[1735626987339,0.26271083,700.83,699.1,0.2860821]
[1735626987540,0.26271083,700.82,699.1,0.2860821]
[1735626987733,0.26271083,700.81,699.1,0.2860821]
[1735626987935,0.26271083,700.8,699.1,0.2860821]
[1735626988135,0.26271083,700.79,699.1,0.2860821]
[1735626988337,0.26271083,700.78,699.1,0.2860821]
[1735626988537,0.26271083,700.81,699.1,0.2860821]
[1735626988739,0.26271083,700.8,699.1,0.2860821]
[1735626988936,0.26271083,700.79,699.1,0.2860821]
[1735626989241,0.26271083,700.78,699.1,0.2860821]
[1735626989440,0.26271083,700.77,699.1,0.2860821]
[1735626989740,0.26271083,700.76,699.1,0.2860821]
[1735626989933,0.26271083,700.75,699.1,0.2860821]
[1735626990137,0.26271083,700.74,699.1,0.2860821]
[1735626990340,0.26271083,700.73,699.1,0.2860821]
[1735626990540,0.26271083,700.72,699.1,0.2860821]
[1735626990742,0.26271083,700.71,699.1,0.2860821]
[1735626990938,1.49195608,700.82,699.1,0.2860821]
[1735626991141,0.26272571,700.81,699.1,0.2860821]
[1735626992139,0.2853922,700.79,699.1,0.2860821]
[1735626992336,0.26272571,700.78,699.1,0.2860821]
[1735626992544,0.28540441,700.76,699.1,0.2860821]
[1735626993542,0.26272968,700.75,699.1,0.2860821]
[1735626993745,0.28540441,700.76,699.1,0.2860821]
[1735626993939,0.28541663,700.73,699.1,0.2860821]
[1735626998148,1.4917429,700.72,699.1,0.2860821]
[1735627000750,0.28541663,700.73,699.1,0.2860821]
[1735627001142,1.49149782,700.71,699.1,0.2860821]
[1735627001550,1.49149782,700.71,699.19,1.06580113]
[1735627002057,0.28541663,700.73,699.19,1.06580113]
[1735627002850,0.28541663,700.73,699.1,0.2860821]
[1735627002851,0.28541663,700.73,699.25,1.06580113]
[1735627003753,0.28541663,700.73,699.37,1.06580113]
[1735627004354,0.28541663,700.73,699.38,0.28596757]
[1735627007357,0.28541663,700.73,699.41,1.06580113]
[1735627008658,0.28541663,700.73,699.38,0.28596757]
[1735627012559,1.4915724,700.72,699.38,0.28596757]
[1735627031870,0.28542478,700.71,699.38,0.28596757]
[1735627058398,0.28542478,700.71,699.41,1.06580113]
[1735627059000,0.28542478,700.71,699.38,0.28596757]
[1735627069606,1.06418333,700.68,699.39,1.06580113]
[1735627069808,0.28544107,700.67,699.39,1.06580113]
[1735627070301,0.26272681,700.66,699.39,1.06580113]
[1735627070500,0.28544922,700.65,699.39,1.06580113]
[1735627070906,0.28544922,700.65,699.4,1.06580113]
[1735627070907,1.06418333,700.61,699.4,1.06580113]
[1735627071106,0.28546959,700.6,699.4,1.06580113]
[1735627073909,0.28546959,700.6,699.38,1.3517687]
[1735627075210,0.28546959,700.6,699.38,0.28596757]
[1735627086616,0.28546959,700.6,699.46,1.06580113]
[1735627087919,0.28546959,700.6,699.5,1.06580113]
[1735627089019,0.28546959,700.6,699.38,2.72702139]
[1735627089020,0.28546959,700.6,699.47,1.06580113]
[1735627089915,0.28546959,700.6,699.5,1.06580113]
[1735627090520,0.28546959,700.6,699.51,1.06580113]
[1735627093217,0.28546959,700.6,699.55,1.06580113]
[1735627094222,0.28546959,700.6,699.53,1.06580113]
[1735627095317,0.28546959,700.6,699.42,1.24406459]
[1735627095318,0.28546959,700.6,699.52,1.06580113]
[1735627096324,0.28546959,700.6,699.43,2.56807072]
[1735627096325,0.28546959,700.6,699.53,1.06580113]
[1735627097727,0.28546959,700.6,699.56,1.06580113]
[1735627098526,0.28546959,700.6,699.54,1.06580113]
[1735627100425,0.28546959,700.6,699.51,1.06580113]
[1735627102426,0.28546959,700.6,699.5,1.06580113]
[1735627103422,0.28546959,700.6,699.48,1.06580113]
[1735627105629,0.28546959,700.6,699.43,1.35174825]
[1735627106123,1.49141259,700.59,699.43,1.35174825]
[1735627106723,1.49141259,700.59,699.45,1.06580113]
[1735627107529,1.49141259,700.59,699.47,1.06580113]
[1735627108931,1.49141259,700.59,699.5,1.06580113]
[1735627109832,1.49141259,700.59,699.43,0.28594712]
[1735627109833,1.49141259,700.59,699.51,1.06580113]
[1735627110531,1.49141259,700.59,699.5,1.06580113]
[1735627111736,1.49141259,700.59,699.48,1.06580113]
[1735627112531,1.49141259,700.59,699.49,1.06580113]
[1735627113233,0.28546959,700.6,699.49,1.06580113]
[1735627113436,0.28546959,700.6,699.58,1.06580113]
[1735627114433,0.28546959,700.6,699.57,1.06580113]
[1735627115439,0.28546959,700.6,699.56,1.06580113]
[1735627116639,0.28546959,700.6,699.52,1.06580113]
[1735627117636,0.28546959,700.6,699.49,1.06580113]
[1735627118943,0.28546959,700.6,699.5,1.06580113]
[1735627120138,0.28546959,700.6,699.53,1.06580113]
[1735627121145,0.28546959,700.6,699.48,1.06580113]
[1735627122247,0.28546959,700.6,699.46,1.06580113]
[1735627123547,1.49155642,700.59,699.46,1.06580113]
[1735627124350,1.49155642,700.59,699.43,0.28594712]
[1735627138558,0.28547774,700.58,699.43,0.28594712]
[1735627140266,0.28547774,700.58,699.19,1.06580113]
[1735627141262,0.28547774,700.58,698.81,1.06580113]
[1735627141466,0.28547774,700.58,698.83,0.28619263]
[1735627144264,0.28547774,700.58,698.86,1.06580113]
[1735627144471,0.28547774,700.58,698.88,0.28617216]
[1735627145467,0.28547774,700.58,698.88,1.35197329]
[1735627147469,0.28547774,700.58,698.89,1.06580113]
[1735627148761,0.28547774,700.58,698.9,0.28616397]
[1735627149471,0.28547774,700.58,698.9,1.3519651]
[1735627150870,0.28547774,700.58,698.93,1.06580113]
[1735627151070,0.28547774,700.58,698.94,0.28614759]
[1735627152272,0.28547774,700.58,699.15,1.06580113]
[1735627153167,0.28547774,700.58,699.11,1.06580113]
[1735627154275,0.28547774,700.58,699.12,1.06580113]
[1735627155272,0.28547774,700.58,699.08,1.06580113]
[1735627156178,0.28547774,700.58,699.06,1.06580113]
[1735627157477,1.34966107,700.58,699.03,1.06580113]
[1735627158171,0.26282428,700.57,699.03,1.06580113]
[1735627158375,1.34966107,700.58,699.03,1.06580113]
[1735627158570,1.06418333,700.55,698.99,1.06580113]
[1735627158775,0.26282817,700.54,698.99,1.06580113]
[1735627159270,0.28550219,700.52,698.99,1.06580113]
[1735627159475,0.26282817,700.51,698.99,1.06580113]
[1735627159677,1.06418333,700.44,698.94,0.28614759]
[1735627159876,0.26284797,700.43,698.94,0.28614759]
[1735627160780,0.28554703,700.41,698.94,0.28614759]
[1735627161076,0.26286891,700.4,698.94,0.28614759]
[1735627161276,0.28555926,700.38,698.94,0.28614759]
[1735627161471,0.26286891,700.37,698.94,0.28614759]
[1735627161673,0.28557149,700.35,698.94,0.28614759]
[1735627162276,0.26288922,700.34,698.94,0.28614759]
[1735627162475,0.28557965,700.33,698.94,0.28614759]
[1735627170175,1.49285211,700.32,698.94,0.28614759]
[1735627170381,0.28559188,700.3,698.94,0.28614759]
[1735627173785,0.26290374,700.29,698.94,0.28614759]
[1735627173985,0.28560412,700.27,698.94,0.28614759]
[1735627174185,0.26290374,700.26,698.94,0.28614759]
[1735627174390,0.28561228,700.25,698.94,0.28614759]
[1735627177082,0.2629077,700.24,698.94,0.28614759]
[1735627177283,0.28562043,700.23,698.94,0.28614759]
[1735627177786,0.26290756,700.22,698.94,0.28614759]
[1735627178186,0.28562859,700.21,698.94,0.28614759]
[1735627178489,0.26290756,700.2,698.94,0.28614759]
[1735627178689,0.28563675,700.19,698.94,0.28614759]
[1735627178890,0.26290756,700.18,698.94,0.28614759]
[1735627179085,0.28564491,700.17,698.94,0.28614759]
[1735627179292,0.26290756,700.16,698.94,0.28614759]
[1735627179493,0.28565307,700.15,698.94,0.28614759]
[1735627180590,1.49284678,700.14,698.94,0.28614759]
[1735627180790,0.28566123,700.13,698.94,0.28614759]
[1735627198407,0.28566123,700.13,698.59,1.06580113]
[1735627199106,0.28566123,700.13,693.35,2.48675509]
[1735627199107,0.28566123,700.13,698.39,1.06580113]
[1735627199305,0.28566123,700.13,698.4,0.28636884]
[1735627200002,0.28566123,700.13,698.41,1.06580113]
[1735627200204,0.28566123,700.13,698.42,0.28636064]
[1735627203104,0.26300299,700.12,698.42,0.28636064]
[1735627203510,1.06418333,700.09,698.42,1.35216177]
[1735627203712,0.26300299,700.08,698.42,1.35216177]
[1735627204509,1.06418333,699.92,698.42,0.28636064]
[1735627204809,0.26303832,699.91,698.42,0.28636064]
[1735627205309,1.75651509,699.91,698.42,0.28636064]
[1735627205510,1.06418333,699.89,698.42,0.28636064]
[1735627205705,0.26303832,699.88,698.42,0.28636064]
[1735627206307,1.06418333,699.89,698.42,0.28636064]
[1735627206509,1.49347677,699.91,698.42,0.28636064]
[1735627209408,0.2857551,699.9,698.42,0.28636064]
[1735627225218,0.2857551,699.9,698.42,1.35216177]
[1735627225921,0.2857551,699.9,698.42,0.28636064]
[1735627236124,0.26303352,699.89,698.42,0.28636064]
[1735627236426,0.28576327,699.88,698.42,0.28636064]
[1735627246731,0.26309775,699.87,698.42,0.28636064]
[1735627247036,0.28576327,699.88,698.42,0.28636064]
[1735627247331,0.26309689,699.87,698.42,0.28636064]
[1735627247735,0.28576327,699.88,698.42,0.28636064]
[1735627247937,0.26309639,699.87,698.42,0.28636064]
[1735627248540,0.28576327,699.88,698.42,0.28636064]
[1735627250836,0.26308846,699.87,698.42,0.28636064]
[1735627251039,0.26310001,699.86,698.42,0.28636064]
[1735627251235,0.28576327,699.88,698.42,0.28636064]
[1735627251438,0.26310616,699.87,698.42,0.28636064]
[1735627251640,0.28576327,699.88,698.42,0.28636064]
[1735627251834,0.28577144,699.86,698.42,0.28636064]
[1735627254241,0.26309656,699.85,698.42,0.28636064]
[1735627254536,0.2857796,699.84,698.42,0.28636064]
[1735627254938,1.4938454,699.83,698.42,0.28636064]
[1735627255340,0.28578777,699.82,698.42,0.28636064]
[1735627304775,0.28578777,699.82,698.47,1.06580113]
[1735627305775,0.28578777,699.82,698.42,0.28636064]
[1735627310683,1.06418333,699.77,698.42,0.28636064]
[1735627311278,1.49370113,699.76,698.42,0.28636064]
[1735627311780,1.06418333,699.75,698.42,0.28636064]
[1735627312478,1.49370113,699.76,698.42,0.28636064]
[1735627312479,2.55788446,699.76,698.42,0.28636064]
[1735627313481,1.49370113,699.76,698.42,0.28636064]
[1735627315082,0.28581636,699.75,698.42,0.28636064]
[1735627324483,0.26310398,699.74,698.42,0.28636064]
[1735627324689,0.28582453,699.73,698.42,0.28636064]
[1735627329091,0.26310292,699.72,698.42,0.28636064]
[1735627329294,0.28582453,699.73,698.42,0.28636064]
[1735627346511,1.06418333,699.71,698.49,1.06580113]
[1735627348317,0.28582453,699.73,698.51,1.06580113]
[1735627348908,0.28582453,699.73,698.52,0.28631964]
[1735627349313,0.28582453,699.73,698.52,1.35212077]
[1735627350512,0.28582453,699.73,698.52,0.28631964]
[1735627362923,1.49304426,699.99,698.52,0.28631964]
[1735627367122,1.06418333,700.42,698.52,0.28631964]
[1735627367325,1.34973444,700.4,698.52,0.28631964]
[1735627367526,0.28555926,700.38,698.52,0.28631964]
[1735627367726,0.26293339,700.37,698.52,0.28631964]
[1735627367925,0.28557149,700.35,698.52,0.28631964]
[1735627368127,0.26293339,700.34,698.52,0.28631964]
[1735627368327,0.28557965,700.33,698.52,0.28631964]
[1735627368624,0.26293091,700.32,698.52,0.28631964]
[1735627368823,0.28558781,700.31,698.52,0.28631964]
[1735627369029,0.26293091,700.3,698.52,0.28631964]
[1735627369328,0.28559596,700.29,698.52,0.28631964]
[1735627370929,1.49259066,700.28,698.52,0.28631964]
[1735627371130,0.28560412,700.27,698.52,0.28631964]
[1735627371524,0.28560412,700.27,698.58,1.06580113]
[1735627372529,0.28560412,700.27,698.64,1.06580113]
[1735627372730,0.28560412,700.27,698.66,0.28626227]
[1735627373331,0.28560412,700.27,698.66,1.3520634]
[1735627374329,0.28560412,700.27,698.66,0.28626227]
[1735627379436,0.2628872,700.26,698.66,0.28626227]
[1735627381138,0.2629113,700.25,698.66,0.28626227]
[1735627381333,0.2629113,700.24,698.66,0.28626227]
[1735627381538,0.2629113,700.23,698.66,0.28626227]
[1735627381729,0.2629113,700.22,698.66,0.28626227]
[1735627382037,0.26289216,700.21,698.66,0.28626227]
[1735627382236,0.26289216,700.2,698.66,0.28626227]
[1735627382539,0.26289216,700.19,698.67,1.06580113]
[1735627382737,1.49267069,700.19,698.67,1.06580113]
[1735627382936,1.49267069,700.19,698.68,0.28625407]
[1735627383534,1.49267069,700.19,698.69,1.06580113]
[1735627384430,0.26289659,700.18,698.7,0.28624588]
[1735627384833,1.49267069,700.19,698.7,0.28624588]
[1735627385432,1.49267069,700.19,698.71,1.06580113]
[1735627386532,1.49267069,700.19,698.73,1.06580113]
[1735627387639,1.49267069,700.19,698.7,0.28624588]
[1735627396444,1.49267069,700.19,698.83,1.06580113]
[1735627396640,1.49267069,700.19,698.84,0.28618854]
[1735627397542,1.49267069,700.19,698.88,1.06580113]
[1735627397844,1.49267069,700.19,698.89,0.28616806]
[1735627398344,1.49267069,700.19,698.9,1.06580113]
[1735627398544,1.49267069,700.19,698.91,0.28615987]
[1735627400640,0.28560412,700.27,698.91,0.28615987]
[1735627400839,1.49233463,700.26,698.91,0.28615987]
[1735627401644,1.49233463,700.26,698.93,1.06580113]
[1735627401843,1.49233463,700.26,698.94,0.28614759]
[1735627402944,0.28560412,700.27,698.95,1.06580113]
[1735627403839,0.28560412,700.27,698.96,1.06580113]
[1735627404045,1.49194542,700.47,698.96,1.06580113]
[1735627404545,1.49194542,700.47,699.07,1.06580113]
[1735627404742,1.49194542,700.47,699.08,0.28609029]
[1735627423354,0.26280085,700.46,699.08,0.28609029]
[1735627423554,0.26280303,700.45,699.08,0.28609029]
[1735627423856,0.28552665,700.46,699.08,0.28609029]
[1735627425653,0.26280047,700.45,699.08,0.28609029]
[1735627425850,0.28552665,700.46,699.08,0.28609029]
[1735627426556,0.26279724,700.45,699.08,0.28609029]
[1735627426955,0.28552665,700.46,699.08,0.28609029]
[1735627427552,0.26279867,700.45,699.08,0.28609029]
[1735627427750,0.28552665,700.46,699.08,0.28609029]
[1735627427951,0.26279914,700.45,699.08,0.28609029]
[1735627428156,0.28552665,700.46,699.08,0.28609029]
[1735627428357,0.26279972,700.45,699.08,0.28609029]
[1735627428959,0.54833045,700.45,699.08,0.28609029]
[1735627429159,0.28553073,700.45,699.08,0.28609029]
[1735627431456,0.28553073,700.45,699.09,1.06580113]
[1735627432657,0.28553073,700.45,699.08,0.28609029]
[1735627432658,0.28553073,700.45,699.1,1.06580113]
[1735627433359,0.28553073,700.45,699.08,0.28609029]
[1735627433360,0.26280315,700.44,699.11,1.06580113]
[1735627433757,0.28553073,700.45,699.11,1.06580113]
[1735627433957,0.26280432,700.44,699.11,1.06580113]
[1735627434563,1.32698765,700.44,699.1,1.06580113]
[1735627434860,0.26280432,700.43,699.1,1.06580113]
[1735627435061,0.26281797,700.42,699.1,1.06580113]
[1735627435257,0.26281797,700.41,699.1,1.06580113]
[1735627435463,0.28555111,700.4,699.1,1.06580113]
[1735627435963,0.26283925,700.39,699.1,1.06580113]
[1735627436156,0.28555926,700.38,699.1,1.06580113]
[1735627436360,1.34974259,700.38,699.08,0.28609029]
[1735627438765,0.28555926,700.38,699.08,0.28609029]
[1735627448170,0.28555926,700.38,699.1,1.06580113]
[1735627448870,0.28555926,700.38,699.11,0.28607801]
[1735627449272,0.28555926,700.38,699.16,1.06580113]
[1735627449473,0.28555926,700.38,699.17,0.28605346]
[1735627450271,0.28555926,700.38,699.17,1.35185459]
[1735627451174,0.28555926,700.38,699.2,1.06580113]
[1735627452176,0.28555926,700.38,699.19,1.06580113]
[1735627453077,0.28555926,700.38,699.18,1.06580113]
[1735627453978,0.28555926,700.38,699.19,1.06580113]
[1735627455078,0.28555926,700.38,699.17,1.35185459]
[1735627456081,0.28555926,700.38,699.17,0.28605346]
[1735627472790,1.49212667,700.37,699.17,0.28605346]
[1735627482503,0.28555926,700.38,699.17,0.28605346]
[1735627487010,0.28555926,700.38,699.19,1.06580113]
[1735627487204,0.28555926,700.38,699.2,0.28604118]
[1735627488112,0.28555926,700.38,699.22,1.06580113]
[1735627489408,0.28555926,700.38,699.23,1.06580113]
[1735627490513,0.28555926,700.38,699.21,1.06580113]
[1735627491617,0.28555926,700.38,699.22,1.06580113]
[1735627492913,0.28555926,700.38,699.27,1.06580113]
[1735627494117,0.28555926,700.38,699.21,1.35183822]
[1735627495813,0.28555926,700.38,699.23,1.06580113]
[1735627496815,0.28555926,700.38,699.24,1.06580113]
[1735627497021,0.28555926,700.38,699.25,0.28602073]
[1735627497616,0.28555926,700.38,699.27,1.06580113]
[1735627499114,0.28555926,700.38,699.28,1.06580113]
[1735627500118,0.28555926,700.38,699.26,1.06580113]
[1735627500319,0.28555926,700.38,699.26,1.35181777]
[1735627501319,0.28555926,700.38,699.27,1.06580113]
[1735627502518,0.28555926,700.38,699.26,0.28601664]
[1735627505022,0.28555926,700.38,699.26,1.35181777]
[1735627507320,0.28555926,700.38,699.32,1.06580113]
[1735627508422,0.28555926,700.38,699.29,1.06580113]
[1735627509525,0.28555926,700.38,699.26,0.28601664]
[1735627512320,0.27702953,700.38,699.26,0.28601664]
[1735627512924,1.49203071,700.37,699.26,0.28601664]
[1735627521528,0.26285226,700.36,699.26,0.28601664]
[1735627521728,0.28556742,700.36,699.26,0.28601664]
[1735627522928,0.28556742,700.36,698.81,1.06580113]
[1735627522929,0.26285847,700.35,698.81,1.06580113]
[1735627523128,0.26285847,700.35,698.82,0.28619673]
[1735627524822,0.28556742,700.36,698.82,0.28619673]
[1735627525131,0.2628768,700.35,698.82,0.28619673]
[1735627526725,0.28557557,700.34,698.82,0.28619673]
[1735627526930,0.2628768,700.33,698.82,0.28619673]
[1735627527330,0.28557557,700.34,698.82,0.28619673]
[1735627527726,0.26287177,700.33,698.82,0.28619673]
[1735627528125,0.28558373,700.32,698.82,0.28619673]
[1735627531438,0.26287707,700.31,698.82,0.28619673]
[1735627532035,0.28558373,700.32,698.82,0.28619673]
[1735627532237,0.26287459,700.31,698.82,0.28619673]
[1735627535440,0.26288279,700.3,698.82,0.28619673]
[1735627535641,0.28558373,700.32,698.82,0.28619673]
[1735627535843,0.2628854,700.31,698.82,0.28619673]
[1735627536043,1.75546539,700.31,698.82,0.28619673]
[1735627536244,0.2628854,700.3,698.82,0.28619673]
[1735627538640,0.26288514,700.29,698.82,0.28619673]
[1735627538845,0.26288514,700.28,698.82,0.28619673]
[1735627539042,0.26288514,700.27,698.82,0.28619673]
[1735627539247,1.49257999,700.31,698.82,0.28619673]
[1735627539449,0.26288601,700.3,698.82,0.28619673]
[1735627540645,1.49257999,700.31,698.82,0.28619673]
[1735627540849,0.26291464,700.29,698.82,0.28619673]
[1735627541044,0.26291432,700.28,698.82,0.28619673]
[1735627541249,0.26291432,700.27,698.82,0.28619673]
[1735627541448,0.26291432,700.26,698.82,0.28619673]
[1735627541645,1.49257999,700.31,698.82,0.28619673]
[1735627541950,0.2629096,700.3,698.82,0.28619673]
[1735627542846,0.28559596,700.29,698.82,0.28619673]
[1735627543051,0.2629096,700.28,698.82,0.28619673]
[1735627543453,0.28560412,700.27,698.82,0.28619673]
[1735627543652,0.2629096,700.26,698.82,0.28619673]
[1735627544546,0.28561228,700.25,698.82,0.28619673]
[1735627545149,0.26289923,700.24,698.82,0.28619673]
[1735627545350,0.28562043,700.23,698.82,0.28619673]
[1735627546348,1.49268669,700.22,698.82,0.28619673]
[1735627546552,0.28562859,700.21,698.82,0.28619673]
[1735627553751,0.28562859,700.21,698.96,1.06580113]